fUSD/lending_fUSD_20260530
["ID","MTS","AMOUNT","RATE_DAILY","PERIOD"]
[423452214,1780127440000,-500.0,0.00014999,2]
[423452219,1780127440000,-627.391729,0.00014999,2]
[423452217,1780127440000,-500.0,0.00014999,2]
[423452216,1780127440000,-500.0,0.00014999,2]
[423452249,1780127440000,-588.76,0.00014999,2]
[423452254,1780127440000,-500.0,0.00014999,2]
[423452253,1780127440000,-588.76099601,0.00014999,2]
[423452283,1780127440000,-500.0,0.00014999,2]
[423452285,1780127440000,-500.0,0.00014999,2]
[423452290,1780127440000,-500.0,0.00014999,2]
[423452286,1780127440000,-500.0,0.00014999,2]
[423452291,1780127440000,-500.0,0.00014999,2]
[423452289,1780127440000,-500.0,0.00014999,2]
[423452288,1780127440000,-500.0,0.00014999,2]
[423452287,1780127440000,-510.18879675,0.00014999,2]
[423452293,1780127440000,-500.0,0.00014999,2]
[423452292,1780127440000,-500.0,0.00014999,2]
[423452251,1780127440000,-588.76,0.00014999,2]
[423452294,1780127440000,-500.0,0.00014999,2]
[423452284,1780127440000,-500.0,0.00014999,2]
[423452296,1780127440000,-500.0,0.00014999,2]
[423452298,1780127440000,-500.0,0.00014999,2]
[423452299,1780127440000,-500.0,0.00014999,2]
[423452300,1780127440000,-500.0,0.00014999,2]
[423452303,1780127440000,-380.90447041,0.00014999,2]
[423452302,1780127440000,-380.06390042,0.00014999,2]
[423452301,1780127440000,-500.0,0.00014999,2]
[423452305,1780127440000,-500.0,0.00014999,2]
[423452304,1780127440000,-500.0,0.00014999,2]
[423452306,1780127440000,-500.0,0.00014999,2]
[423452309,1780127440000,-500.0,0.00014999,2]
[423452311,1780127440000,-500.0,0.00014999,2]
[423452313,1780127440000,-500.0,0.00014999,2]
[423452297,1780127440000,-500.0,0.00014999,2]
[423452282,1780127440000,-500.0,0.00014999,2]
[423452295,1780127440000,-500.0,0.00014999,2]
[423452281,1780127440000,-500.0,0.00014999,2]
[423452280,1780127440000,-500.0,0.00014999,2]
[423452255,1780127440000,-500.0,0.00014999,2]
[423452256,1780127440000,-500.0,0.00014999,2]
[423452257,1780127440000,-500.0,0.00014999,2]
[423452258,1780127440000,-500.0,0.00014999,2]
[423452259,1780127440000,-500.0,0.00014999,2]
[423452261,1780127440000,-500.0,0.00014999,2]
[423452262,1780127440000,-500.0,0.00014999,2]
[423452264,1780127440000,-500.0,0.00014999,2]
[423452265,1780127440000,-500.0,0.00014999,2]
[423452266,1780127440000,-500.0,0.00014999,2]
[423452260,1780127440000,-500.0,0.00014999,2]
[423452263,1780127440000,-500.0,0.00014999,2]
[423452252,1780127440000,-588.76,0.00014999,2]
[423452268,1780127440000,-500.0,0.00014999,2]
[423452267,1780127440000,-500.0,0.00014999,2]
[423452278,1780127440000,-500.0,0.00014999,2]
[423452277,1780127440000,-445.31384922,0.00014999,2]
[423452276,1780127440000,-500.0,0.00014999,2]
[423452275,1780127440000,-500.0,0.00014999,2]
[423452279,1780127440000,-500.0,0.00014999,2]
[423452272,1780127440000,-150.0,0.00014999,2]
[423452273,1780127440000,-500.0,0.00014999,2]
[423452270,1780127440000,-500.0,0.00014999,2]
[423452271,1780127440000,-378.36898806,0.00014999,2]
[423452269,1780127440000,-500.0,0.00014999,2]
[423452274,1780127440000,-500.0,0.00014999,2]
[423452327,1780127441000,-500.0,0.00014999,2]
[423452329,1780127441000,-500.0,0.00014999,2]
[423452330,1780127441000,-500.0,0.00014999,2]
[423452332,1780127441000,-500.0,0.00014999,2]
[423452331,1780127441000,-500.0,0.00014999,2]
[423452334,1780127441000,-1013.13,0.00014999,2]
[423452335,1780127441000,-1013.13,0.00014999,2]
[423452336,1780127441000,-1013.13,0.00014999,2]
[423452328,1780127441000,-500.0,0.00014999,2]
[423452333,1780127441000,-572.38752337,0.00014999,2]
[423452326,1780127441000,-500.0,0.00014999,2]
[423452320,1780127441000,-500.0,0.00014999,2]
[423452322,1780127441000,-500.0,0.00014999,2]
[423452324,1780127441000,-500.0,0.00014999,2]
[423452323,1780127441000,-500.0,0.00014999,2]
[423452321,1780127441000,-500.0,0.00014999,2]
[423452319,1780127441000,-500.0,0.00014999,2]
[423452317,1780127441000,-500.0,0.00014999,2]
[423452316,1780127441000,-500.0,0.00014999,2]
[423452315,1780127441000,-500.0,0.00014999,2]
[423452318,1780127441000,-500.0,0.00014999,2]
[423452314,1780127441000,-500.0,0.00014999,2]
[423452337,1780127441000,-1013.13,0.00014999,2]
[423452325,1780127441000,-500.0,0.00014999,2]
[423452340,1780127441000,-1013.13,0.00014999,2]
[423452359,1780127441000,-300.0,0.00014999,2]
[423452339,1780127441000,-1013.13,0.00014999,2]
[423452365,1780127441000,-72.40289699,0.00015,2]
[423452363,1780127441000,-917.39276177,0.00015,2]
[423452362,1780127441000,-299.99,0.00015,2]
[423452361,1780127441000,-433.9373879,0.00015,2]
[423452358,1780127441000,-300.0,0.00014999,2]
[423452366,1780127441000,-62287.70852238,0.00015,2]
[423452360,1780127441000,-1127532.35239724,0.00015,2]
[423452356,1780127441000,-1013.13,0.00014999,2]
[423452357,1780127441000,-1013.19525507,0.00014999,2]
[423452354,1780127441000,-1013.13,0.00014999,2]
[423452355,1780127441000,-1013.13,0.00014999,2]
[423452352,1780127441000,-1013.13,0.00014999,2]
[423452338,1780127441000,-1013.13,0.00014999,2]
[423452351,1780127441000,-1013.13,0.00014999,2]
[423452350,1780127441000,-1013.13,0.00014999,2]
[423452349,1780127441000,-1013.13,0.00014999,2]
[423452345,1780127441000,-1013.13,0.00014999,2]
[423452348,1780127441000,-1013.13,0.00014999,2]
[423452347,1780127441000,-1013.13,0.00014999,2]
[423452346,1780127441000,-1013.13,0.00014999,2]
[423452343,1780127441000,-1013.13,0.00014999,2]
[423452344,1780127441000,-1013.13,0.00014999,2]
[423452341,1780127441000,-1013.13,0.00014999,2]
[423452342,1780127441000,-1013.13,0.00014999,2]
[423452353,1780127441000,-1013.13,0.00014999,2]
[423452395,1780127443000,-6531.41251943,0.000147,2]
[423452394,1780127443000,-630.27014881,0.000147,2]
[423452396,1780127443000,-5972.18949961,0.00015,2]
[423452398,1780127443000,-3418.36442236,0.00015,2]
[423452400,1780127443000,-36995.20318533,0.00015,2]
[423452401,1780127443000,-818.23794938,0.00015,2]
[423452402,1780127443000,-735.64,0.00015,2]
[423452397,1780127443000,-419.74017867,0.00015,2]
[423452407,1780127445000,-20066.038,0.00015,2]
[423452406,1780127445000,-1394.29459015,0.00015,2]
[423452412,1780127598000,150.75268405,0.0002808,120]
[423452418,1780127795000,150.0,0.0002808,120]
[423452429,1780128554000,200.0,0.0002808,120]
[423452430,1780128562000,1000.0,0.00028079,120]
[423452438,1780128631000,-250.0,7.863e-05,2]
[423452435,1780128631000,-250.0,7.663e-05,2]
[423452437,1780128631000,-165.65510178,7.686e-05,2]
[423452440,1780128631000,-847.785472,8.178e-05,2]
[423452436,1780128631000,-49.9285038,7.686e-05,2]
[423452439,1780128631000,-150.0,8.1e-05,2]
[423452442,1780128631000,-500.0,8.421e-05,2]
[423452443,1780128631000,-500.0,8.421e-05,2]
[423452444,1780128631000,-500.0,8.421e-05,2]
[423452445,1780128631000,-515.98811898,8.421e-05,2]
[423452441,1780128631000,-209.12966642,8.191e-05,2]
[423452459,1780128632000,-4071.73269145,9.2e-05,2]
[423452463,1780128632000,-12797.0,9.605e-05,2]
[423452467,1780128632000,-1000.0,0.0001,2]
[423452466,1780128632000,-1000.0,0.0001,2]
[423452471,1780128632000,-1000.0,0.0001,2]
[423452474,1780128632000,-152.0,0.00011032,7]
[423452478,1780128632000,-200.0,0.0001153,2]
[423452477,1780128632000,-150.0,0.00011516,2]
[423452473,1780128632000,-250.0,0.00010363,2]
[423452481,1780128632000,-152.41,0.00011743,2]
[423452482,1780128632000,-347.29,0.00012009,2]
[423452475,1780128632000,-221.87967195,0.00011133,2]
[423452476,1780128632000,-228.60329836,0.00011356,2]
[423452472,1780128632000,-1000.0,0.0001,2]
[423452465,1780128632000,-1000.0,0.0001,2]
[423452469,1780128632000,-1000.0,0.0001,2]
[423452461,1780128632000,-622.0,9.263e-05,2]
[423452479,1780128632000,-513.8,0.00011583,2]
[423452448,1780128632000,-300.0,8.421e-05,2]
[423452446,1780128632000,-150.0,8.421e-05,2]
[423452447,1780128632000,-1200.0,8.421e-05,2]
[423452449,1780128632000,-150.0,8.422e-05,2]
[423452450,1780128632000,-150.0,8.422e-05,2]
[423452457,1780128632000,-500.0,8.43e-05,2]
[423452452,1780128632000,-250.0,8.424e-05,2]
[423452451,1780128632000,-566.7554006,8.423e-05,2]
[423452454,1780128632000,-500.0,8.43e-05,2]
[423452453,1780128632000,-500.0,8.43e-05,2]
[423452456,1780128632000,-384.94397342,8.43e-05,2]
[423452470,1780128632000,-1000.0,0.0001,2]
[423452468,1780128632000,-1000.0,0.0001,2]
[423452455,1780128632000,-500.0,8.43e-05,2]
[423452480,1780128632000,-1088.35,0.00011705,2]
[423452492,1780128632000,-1000.0,0.00012324,2]
[423452485,1780128632000,-160.0,0.00012095,2]
[423452504,1780128632000,-640.0,0.00012803,2]
[423452507,1780128632000,-347.29,0.00012874,2]
[423452502,1780128632000,-2167.3865,0.00012722,2]
[423452505,1780128632000,-347.29,0.00012807,2]
[423452506,1780128632000,-2334.3,0.00012817,2]
[423452483,1780128632000,-347.29,0.00012075,2]
[423452501,1780128632000,-347.29,0.00012674,2]
[423452509,1780128632000,-1630.77,0.00012893,2]
[423452510,1780128632000,-9999.99,0.00012893,2]
[423452513,1780128632000,-347.29,0.00013007,2]
[423452516,1780128632000,-2123.63335546,0.00013138,2]
[423452511,1780128632000,-8525.19,0.00012893,2]
[423452512,1780128632000,-347.29,0.0001294,2]
[423452514,1780128632000,-1262.95,0.00013066,2]
[423452515,1780128632000,-347.29,0.00013073,2]
[423452498,1780128632000,-347.29,0.00012541,2]
[423452503,1780128632000,-347.29,0.0001274,2]
[423452500,1780128632000,-184.92,0.00012647,2]
[423452495,1780128632000,-3107.79,0.00012421,2]
[423452499,1780128632000,-347.29,0.00012607,2]
[423452484,1780128632000,-749.84646836,0.00012077,2]
[423452487,1780128632000,-167.21,0.00012183,2]
[423452486,1780128632000,-347.29,0.00012142,2]
[423452489,1780128632000,-1579.61378089,0.00012224,2]
[423452488,1780128632000,-347.29,0.00012208,2]
[423452490,1780128632000,-347.29,0.00012275,2]
[423452491,1780128632000,-2000.0,0.00012307,2]
[423452493,1780128632000,-347.29,0.00012341,2]
[423452496,1780128632000,-347.29,0.00012474,2]
[423452497,1780128632000,-8407.1,0.00012529,2]
[423452508,1780128632000,-150.99,0.00012893,2]
[423452494,1780128632000,-347.29,0.00012408,2]
[423452532,1780128633000,-10498.2792,0.000137,2]
[423452536,1780128633000,-166.66,0.00013836,2]
[423452529,1780128633000,-150.0,0.00013488,2]
[423452527,1780128633000,-150.0,0.00013488,2]
[423452528,1780128633000,-150.0,0.00013488,2]
[423452526,1780128633000,-150.0,0.00013488,2]
[423452517,1780128633000,-210.66664454,0.00013138,2]
[423452524,1780128633000,-150.0,0.00013488,2]
[423452522,1780128633000,-2334.3,0.00013458,2]
[423452519,1780128633000,-167.21,0.00013189,2]
[423452521,1780128633000,-347.29,0.00013273,2]
[423452520,1780128633000,-347.29,0.00013206,2]
[423452518,1780128633000,-347.29,0.0001314,2]
[423452530,1780128633000,-166.66,0.00013699,2]
[423452523,1780128633000,-150.0,0.00013488,2]
[423452534,1780128633000,-2334.3,0.00013779,2]
[423452525,1780128633000,-150.0,0.00013488,2]
[423452531,1780128633000,-200.0,0.00013699,2]
[423452550,1780128633000,-635.47,0.00014117,2]
[423452547,1780128633000,-500.0,0.00014117,2]
[423452546,1780128633000,-500.0,0.00014117,2]
[423452545,1780128633000,-500.0,0.00014117,2]
[423452544,1780128633000,-166.66,0.0001411,2]
[423452543,1780128633000,-2334.3,0.00014099,2]
[423452542,1780128633000,-250.0,0.00014,2]
[423452533,1780128633000,-2000.0,0.000137,2]
[423452540,1780128633000,-166.66,0.00013973,2]
[423452535,1780128633000,-187.71242717,0.00013836,10]
[423452538,1780128633000,-151.0,0.00013891,2]
[423452548,1780128633000,-517.0,0.00014117,2]
[423452549,1780128633000,-500.0,0.00014117,2]
[423452537,1780128633000,-2000.0,0.00013846,2]
[423452539,1780128633000,-151.0,0.00013902,2]
[423452541,1780128633000,-150.0,0.00013987,2]
[423452600,1780128634000,-500.0,0.00014899,2]
[423452577,1780128634000,-165.91769856,0.0001488,2]
[423452589,1780128634000,-500.0,0.00014899,2]
[423452581,1780128634000,-225.38348614,0.00014889,2]
[423452586,1780128634000,-500.0,0.00014899,2]
[423452583,1780128634000,-165.91769855,0.00014893,2]
[423452585,1780128634000,-225.38348614,0.00014897,2]
[423452580,1780128634000,-165.91769855,0.00014887,2]
[423452584,1780128634000,-225.38348614,0.00014894,2]
[423452587,1780128634000,-5000.0,0.00014899,2]
[423452579,1780128634000,-225.38348614,0.00014886,2]
[423452582,1780128634000,-225.38348614,0.00014891,2]
[423452590,1780128634000,-500.0,0.00014899,2]
[423452591,1780128634000,-500.0,0.00014899,2]
[423452602,1780128634000,-635.47,0.00014899,2]
[423452601,1780128634000,-635.47,0.00014899,2]
[423452592,1780128634000,-497.78987791,0.00014899,2]
[423452595,1780128634000,-517.0,0.00014899,2]
[423452594,1780128634000,-517.0,0.00014899,2]
[423452598,1780128634000,-517.0,0.00014899,2]
[423452593,1780128634000,-517.0,0.00014899,2]
[423452596,1780128634000,-517.0,0.00014899,2]
[423452599,1780128634000,-500.0,0.00014899,2]
[423452597,1780128634000,-517.0,0.00014899,2]
[423452588,1780128634000,-500.0,0.00014899,2]
[423452603,1780128634000,-635.47,0.00014899,2]
[423452578,1780128634000,-225.38348614,0.00014883,2]
[423452570,1780128634000,-276.2,0.00014738,2]
[423452561,1780128634000,-5415.14435164,0.000147,2]
[423452553,1780128634000,-167.21,0.00014194,2]
[423452552,1780128634000,-826.42,0.00014117,2]
[423452562,1780128634000,-171.08,0.00014711,2]
[423452551,1780128634000,-500.0,0.00014117,2]
[423452559,1780128634000,-25454.18,0.00014497,2]
[423452555,1780128634000,-166.66,0.00014384,2]
[423452556,1780128634000,-640.0,0.00014404,2]
[423452557,1780128634000,-150.0,0.00014487,2]
[423452558,1780128634000,-500.0,0.00014496,2]
[423452560,1780128634000,-1536.448267,0.000147,2]
[423452568,1780128634000,-151.0,0.0001473,2]
[423452554,1780128634000,-166.66,0.00014247,2]
[423452573,1780128634000,-151.0,0.00014738,2]
[423452574,1780128634000,-2500.0,0.00014799,2]
[423452576,1780128634000,-225.38348618,0.0001488,2]
[423452572,1780128634000,-151.0,0.00014738,2]
[423452566,1780128634000,-166.73,0.00014721,2]
[423452575,1780128634000,-200.0,0.00014839,2]
[423452569,1780128634000,-151.0,0.0001473,2]
[423452563,1780128634000,-151.0,0.00014713,2]
[423452565,1780128634000,-151.0,0.00014714,2]
[423452567,1780128634000,-151.0,0.00014724,2]
[423452605,1780128634000,-635.47,0.00014899,2]
[423452564,1780128634000,-151.0,0.00014714,2]
[423452571,1780128634000,-151.0,0.00014738,2]
[423452616,1780128634000,-826.42,0.00014899,2]
[423452606,1780128634000,-635.47,0.00014899,2]
[423452637,1780128634000,-500.0,0.00014979,2]
[423452644,1780128634000,-500.0,0.00014979,2]
[423452643,1780128634000,-500.0,0.00014979,2]
[423452638,1780128634000,-500.0,0.00014979,2]
[423452640,1780128634000,-500.0,0.00014979,2]
[423452642,1780128634000,-500.0,0.00014979,2]
[423452645,1780128634000,-1034.92,0.00014979,2]
[423452639,1780128634000,-500.0,0.00014979,2]
[423452641,1780128634000,-500.0,0.00014979,2]
[423452649,1780128634000,-465.6112843,0.0001498,2]
[423452648,1780128634000,-4569.2738799,0.0001498,2]
[423452615,1780128634000,-826.42,0.00014899,2]
[423452646,1780128634000,-1034.92,0.00014979,2]
[423452650,1780128634000,-14487.8188044,0.0001498,2]
[423452647,1780128634000,-4004.6240277,0.0001498,2]
[423452652,1780128634000,-1075.43,0.0001498,2]
[423452654,1780128634000,-1288.30785659,0.0001498,2]
[423452653,1780128634000,-1827.42955702,0.0001498,2]
[423452655,1780128634000,-1575.6728134,0.0001498,2]
[423452656,1780128634000,-1950.9365659,0.0001498,2]
[423452657,1780128634000,-5995.28382223,0.0001498,2]
[423452659,1780128634000,-467.29685263,0.0001498,2]
[423452658,1780128634000,-7229.02546749,0.0001498,2]
[423452660,1780128634000,-278.52586619,0.0001498,2]
[423452651,1780128634000,-316.11449079,0.0001498,2]
[423452636,1780128634000,-500.0,0.00014979,2]
[423452634,1780128634000,-500.0,0.00014979,2]
[423452635,1780128634000,-500.0,0.00014979,2]
[423452610,1780128634000,-500.0,0.00014899,2]
[423452604,1780128634000,-635.47,0.00014899,2]
[423452612,1780128634000,-500.0,0.00014899,2]
[423452608,1780128634000,-500.0,0.00014899,2]
[423452611,1780128634000,-500.0,0.00014899,2]
[423452617,1780128634000,-826.42,0.00014899,2]
[423452609,1780128634000,-500.0,0.00014899,2]
[423452607,1780128634000,-500.0,0.00014899,2]
[423452614,1780128634000,-826.42,0.00014899,2]
[423452633,1780128634000,-500.0,0.00014979,2]
[423452630,1780128634000,-617.05,0.00014979,2]
[423452631,1780128634000,-617.05,0.00014979,2]
[423452629,1780128634000,-500.0,0.00014979,2]
[423452621,1780128634000,-165.91769855,0.000149,2]
[423452632,1780128634000,-500.0,0.00014979,2]
[423452624,1780128634000,-400.0,0.00014925,2]
[423452623,1780128634000,-200.70074596,0.00014921,2]
[423452628,1780128634000,-500.0,0.00014979,2]
[423452626,1780128634000,-500.0,0.00014979,2]
[423452613,1780128634000,-826.42,0.00014899,2]
[423452627,1780128634000,-500.0,0.00014979,2]
[423452619,1780128634000,-642.87200383,0.000149,2]
[423452618,1780128634000,-826.42,0.00014899,2]
[423452620,1780128634000,-225.38348614,0.000149,2]
[423452622,1780128634000,-253.34666668,0.000149,2]
[423452625,1780128634000,-400.0,0.00014925,2]
[423452676,1780128638000,-11880.01271692,0.0001498,2]
[423452675,1780128638000,-4634.39507909,0.000147,2]
[423452674,1780128638000,-208.71568839,8.421e-05,2]
[423452673,1780128638000,-299.99,8.421e-05,2]
[423452682,1780128643000,-3089.59671939,0.000147,2]
[423452683,1780128643000,-2441.43158269,0.0001498,2]
[423452684,1780128643000,-3868.47036467,0.0001498,2]
[423452686,1780128643000,-1867.39643538,0.0001498,2]
[423452685,1780128643000,-12138.98095536,0.0001498,2]
[423452700,1780128646000,-2004.70541476,0.0001498,2]
[423452793,1780129740000,1000.0,0.00028078,120]
[423452988,1780129832000,-500.0,8.411e-05,2]
[423452990,1780129832000,-500.0,8.411e-05,2]
[423452986,1780129832000,-500.0,8.411e-05,2]
[423452972,1780129832000,-500.0,8.411e-05,2]
[423452983,1780129832000,-500.0,8.411e-05,2]
[423452963,1780129832000,-500.0,8.411e-05,2]
[423452992,1780129832000,-500.0,8.411e-05,2]
[423452966,1780129832000,-500.0,8.411e-05,2]
[423452964,1780129832000,-500.0,8.411e-05,2]
[423452970,1780129832000,-500.0,8.411e-05,2]
[423452968,1780129832000,-500.0,8.411e-05,2]
[423452977,1780129832000,-500.0,8.411e-05,2]
[423452996,1780129832000,-500.0,8.411e-05,2]
[423452961,1780129832000,-500.0,8.411e-05,2]
[423452979,1780129832000,-500.0,8.411e-05,2]
[423452981,1780129832000,-500.0,8.411e-05,2]
[423452994,1780129832000,-500.0,8.411e-05,2]
[423452998,1780129832000,-500.0,8.411e-05,2]
[423453001,1780129832000,-500.0,8.411e-05,2]
[423453003,1780129832000,-500.0,8.411e-05,2]
[423453007,1780129832000,-500.0,8.411e-05,2]
[423453012,1780129832000,-500.0,8.411e-05,2]
[423453014,1780129832000,-951.39911563,8.411e-05,2]
[423453000,1780129832000,-500.0,8.411e-05,2]
[423452974,1780129832000,-500.0,8.411e-05,2]
[423452950,1780129832000,-500.0,8.411e-05,2]
[423452955,1780129832000,-500.0,8.411e-05,2]
[423452957,1780129832000,-500.0,8.411e-05,2]
[423452928,1780129832000,-1929.27379233,8.403e-05,2]
[423452929,1780129832000,-203.32274739,8.403e-05,2]
[423452931,1780129832000,-149.42824739,8.404e-05,2]
[423452930,1780129832000,-150.57175261,8.404e-05,2]
[423452932,1780129832000,-500.0,8.405e-05,2]
[423452935,1780129832000,-250.0,8.407e-05,2]
[423452936,1780129832000,-500.0,8.409e-05,2]
[423452934,1780129832000,-1120.72489368,8.407e-05,2]
[423452933,1780129832000,-303.78907046,8.406e-05,2]
[423452937,1780129832000,-250.0,8.41e-05,2]
[423452938,1780129832000,-500.0,8.411e-05,2]
[423452940,1780129832000,-500.0,8.411e-05,2]
[423452941,1780129832000,-500.0,8.411e-05,2]
[423452947,1780129832000,-500.0,8.411e-05,2]
[423452939,1780129832000,-500.0,8.411e-05,2]
[423452942,1780129832000,-500.0,8.411e-05,2]
[423452944,1780129832000,-500.0,8.411e-05,2]
[423452943,1780129832000,-500.0,8.411e-05,2]
[423452945,1780129832000,-500.0,8.411e-05,2]
[423452946,1780129832000,-500.0,8.411e-05,2]
[423452948,1780129832000,-500.0,8.411e-05,2]
[423452953,1780129832000,-500.0,8.411e-05,2]
[423452949,1780129832000,-500.0,8.411e-05,2]
[423452952,1780129832000,-458.76285644,8.411e-05,2]
[423453005,1780129832000,-500.0,8.411e-05,2]
[423452959,1780129832000,-500.0,8.411e-05,2]
[423453009,1780129832000,-500.0,8.411e-05,2]
[423452975,1780129832000,-500.0,8.411e-05,2]
[423453015,1780129832000,-529.27929117,8.411e-05,2]
[423453052,1780129832000,-446.36229951,9.287e-05,2]
[423453041,1780129832000,-500.0,9.244e-05,2]
[423453050,1780129832000,-500.0,9.287e-05,2]
[423453051,1780129832000,-500.0,9.287e-05,2]
[423453049,1780129832000,-500.0,9.287e-05,2]
[423453043,1780129832000,-500.0,9.287e-05,2]
[423453044,1780129832000,-500.0,9.287e-05,2]
[423453042,1780129832000,-300.0,9.244e-05,2]
[423453045,1780129832000,-500.0,9.287e-05,2]
[423453053,1780129832000,-313.23905576,9.287e-05,2]
[423453064,1780129832000,-7994.13631563,0.000107,2]
[423453054,1780129832000,-160.0,9.288e-05,2]
[423453062,1780129832000,-163.56,0.0001,2]
[423453056,1780129832000,-4875.0,9.296e-05,2]
[423453011,1780129832000,-500.0,8.411e-05,2]
[423453058,1780129832000,-150.0,9.505e-05,2]
[423453057,1780129832000,-274.0,9.45e-05,2]
[423453059,1780129832000,-5279.0,9.506e-05,2]
[423453060,1780129832000,-1120.72489367,9.944e-05,2]
[423453063,1780129832000,-255.0,0.00010456,2]
[423453055,1780129832000,-5892.0,9.288e-05,2]
[423453066,1780129832000,-631.47,0.00011446,2]
[423453065,1780129832000,-1120.72489367,0.00011381,2]
[423453068,1780129832000,-384.0,0.00011481,2]
[423453067,1780129832000,-4772.65,0.00011446,2]
[423453047,1780129832000,-500.0,9.287e-05,2]
[423453046,1780129832000,-174.51102552,9.287e-05,2]
[423453061,1780129832000,-807.17,0.0001,2]
[423453037,1780129832000,-3282.22541564,9.04e-05,2]
[423453048,1780129832000,-500.0,9.287e-05,2]
[423453016,1780129832000,-422.11982446,8.411e-05,2]
[423453020,1780129832000,-951.39911563,8.411e-05,2]
[423453019,1780129832000,-951.39911563,8.411e-05,2]
[423453018,1780129832000,-951.39911563,8.411e-05,2]
[423453013,1780129832000,-500.0,8.411e-05,2]
[423453022,1780129832000,-951.39911563,8.411e-05,2]
[423453023,1780129832000,-951.39911563,8.411e-05,2]
[423453017,1780129832000,-951.39911563,8.411e-05,2]
[423453027,1780129832000,-951.39911563,8.411e-05,2]
[423453024,1780129832000,-951.39911563,8.411e-05,2]
[423453028,1780129832000,-951.39911563,8.411e-05,2]
[423453025,1780129832000,-951.39911563,8.411e-05,2]
[423453021,1780129832000,-951.39911563,8.411e-05,2]
[423453026,1780129832000,-951.39911563,8.411e-05,2]
[423453038,1780129832000,-6468.0,9.234e-05,2]
[423453036,1780129832000,-1200.0,9.039e-05,2]
[423453035,1780129832000,-215.58360558,8.488e-05,2]
[423453034,1780129832000,-209.12966642,8.488e-05,2]
[423453039,1780129832000,-250.0,9.244e-05,2]
[423453032,1780129832000,-442.3205589,8.412e-05,2]
[423453031,1780129832000,-951.39911563,8.411e-05,2]
[423453040,1780129832000,-500.0,9.244e-05,2]
[423453033,1780129832000,-160.0,8.488e-05,2]
[423453029,1780129832000,-951.39911563,8.411e-05,2]
[423453030,1780129832000,-951.39911563,8.411e-05,2]
[423453098,1780129833000,-2000.0,0.0001348,2]
[423453085,1780129833000,-200.0,0.00012401,2]
[423453088,1780129833000,-1000.0,0.00012606,2]
[423453089,1780129833000,-708.0,0.00012651,2]
[423453099,1780129833000,-217.54708937,0.00013488,2]
[423453091,1780129833000,-500.0,0.00012824,2]
[423453093,1780129833000,-161.77,0.0001309,2]
[423453092,1780129833000,-384.0,0.00012916,2]
[423453096,1780129833000,-175.02,0.00013382,2]
[423453095,1780129833000,-175.02,0.00013308,2]
[423453090,1780129833000,-268.13,0.00012682,2]
[423453111,1780129833000,-175.02,0.0001375,2]
[423453097,1780129833000,-175.02,0.00013456,2]
[423453101,1780129833000,-219.03513742,0.00013488,2]
[423453094,1780129833000,-500.0,0.0001326,2]
[423453086,1780129833000,-500.0,0.0001255,2]
[423453071,1780129833000,-328.86,0.00011781,2]
[423453083,1780129833000,-171.12,0.00012276,2]
[423453112,1780129833000,-175.02,0.00013824,2]
[423453069,1780129833000,-433.0,0.00011501,2]
[423453076,1780129833000,-572.59,0.00011972,2]
[423453072,1780129833000,-150.0,0.00011853,2]
[423453070,1780129833000,-990.31,0.00011764,2]
[423453075,1780129833000,-152.0,0.00011963,7]
[423453073,1780129833000,-500.0,0.00011863,2]